Cogmind - Beta 16.1 @@@ ROGUE MODE // 2026.06.18 @ 15:02:45 Player: Lolterzard Result: Destroyed self with Grenade Launcher Performance ------------- Evolutions (0) 0 Regions Visited (2) 400 Robots Destroyed (26) 130 Value Destroyed (447) 447 Prototype IDs (0) 0 Alien Tech Used (0) 0 Bonus (0) 0 TOTAL SCORE: 977 Bonus ------- None Cogmind --------- Core Integrity 0/250 Matter 250/300 Energy 84/100 System Corruption 1% Temperature Cool (0) Movement Hovering (240) Ox3 Location -10/Mines Parts ------- > --- POWER (1) -------- (None) > --- PROPULSION (2) --- Hover Unit > --- UTILITY (2) ------ Large Storage Unit > --- WEAPON (2) ------- Grenade Launcher > --- INVENTORY (15) --- Light Treads Hover Unit Hover Unit Hover Unit Hover Unit Small Storage Unit Seismic Detector Transport Network Coupler Power Shielding Weapon Shielding EM Pulse Gun Peak State ------------ > --- POWER ------------ Light Ion Engine > --- PROPULSION ------- Light Treads Light Treads > --- UTILITY ---------- Large Storage Unit Seismic Detector > --- WEAPON ----------- Assault Rifle Assault Rifle > --- INVENTORY -------- Ion Engine Light Treads Wheel Compact Wheel Hover Unit Small Storage Unit Transport Network Coupler Power Shielding EM Pulse Gun Grenade Launcher [Rating: 8] Favorites ----------- Power Light Ion Engine Engine Light Ion Engine Propulsion Light Treads Treads Light Treads Hover Unit Hover Unit Utility Large Storage Unit Device Seismic Detector Storage Large Storage Unit Processor Signal Interpreter Weapon Assault Rifle Energy Gun EM Pulse Gun Ballistic Gun Assault Rifle Launcher Grenade Launcher Build | -11 -10 -10 ------- Run | Yrd Mat Min Slots Evolved . | . . . Power . | . . . Propulsion . | . . . Utility . | . . . Weapon . | . . . Parts Attached 16 | 7 6 3 Power 2 | 1 1 . Engine 2 | 1 1 . Core . | . . . Reactor . | . . . Propulsion 4 | 2 . 2 Treads 2 | 2 . . Leg . | . . . Wheel . | . . . Hover 2 | . . 2 Flight . | . . . Utility 4 | 2 1 1 Device 1 | 1 . . Storage 2 | 1 1 . Processor 1 | . . 1 Hackware . | . . . Protection . | . . . Artifact . | . . . Weapon 6 | 2 4 . Energy Gun 1 | . 1 . Energy Cannon . | . . . Ballistic Gun 4 | 2 2 . Ballistic Cannon . | . . . Launcher 1 | . 1 . Special Weapon . | . . . Impact Weapon . | . . . Slashing Weapon . | . . . Piercing Weapon . | . . . Special Melee Weapon . | . . . Unidentified Prototypes . | . . . Parts Lost 10 | . 3 7 Power 2 | . 1 1 Propulsion 3 | . . 3 Utility 1 | . . 1 Weapon 4 | . 2 2 Highest Loss Streak 6 | . 2 6 To Critical Strikes . | . . . Average Backups 10 | 3 10 13 Power . | . . . Propulsion 4 | 1 5 6 Utility 2 | . 3 5 Weapon 1 | . 1 1 Tool/Special . | . . . Unused Backups 10 | . 2 8 Power . | . . . Propulsion 7 | . 2 5 Utility 3 | . . 3 Weapon . | . . . Tool/Special . | . . . Average Slot Usage (%) 97 | . 99 81 Engine 13 | . 13 11 Treads 26 | . 28 15 Device 13 | . 14 5 Storage 14 | . 14 14 Energy Gun 1 | . 1 . Ballistic Gun 25 | . 26 24 Peak Build Rating 8 | 7 8 8 Average Rating 7 | 5 7 6 On Entrance 5 | . 7 8 Avg Prop Armor Cover (%) 25 | 25 . . Naked Turns . | . . . Heaviest Build 29 | 13 29 29 Greatest Support 40 | 40 40 40 Greatest Overweight (x) 3 | 3 . 3 Average Overweight (x) . | . . . Largest Inventory Capacity 15 | 8 15 15 Average Capacity 13 | 7 14 15 Most Carried 15 | 4 15 14 Average Carried 10 | 3 10 13 Final Capacity 15 | 8 15 15 Final Carried 14 | 4 14 11 Class Distribution -------------------- 100% | Mutant Dominant Class ---------------- Mutant | -10/Materials Mutant | -10/Mines Resources | -11 -10 -10 ----------- Run | Yrd Mat Min Matter Collected 709 | 314 365 30 Remotely . | . . . Salvage Created 799 | 187 560 52 Parts 55 | 11 41 3 Haulers Intercepted 2 | . 2 . Recyclers Shooed . | . . . Parts Field Recycled . | . . . Retrieved Matter . | . . . Parts Self-Destructed . | . . . Prevented . | . . . Parts Restored . | . . . Kills | -11 -10 -10 ------- Run | Yrd Mat Min Combat Hostiles Destroyed 16 | . 13 3 Guns 12 | . 11 1 AOE 4 | . 2 2 Classes Destroyed 9 | 2 6 1 Worker 2 | . 2 . Builder 2 | . 2 . Tunneler 4 | 4 . . Hauler 2 | . 2 . Recycler 1 | 1 . . Watcher 1 | . 1 . Swarmer 6 | . 6 . Grunt 8 | . 7 1 Assembled 2 | . . 2 Best Kill Streak 3 | 2 3 2 Combat Bots Only 3 | . 3 2 Max Kills in Single Turn 2 | 1 2 2 Gunslinging 1 | . 1 . Exploded 2 | . 2 2 Melee . | . . . Uniques/NPCs Destroyed . | . . . Combat | -11 -10 -10 -------- Run | Yrd Mat Min Hostile Shots Fired 88 | . 53 35 Missed 21 | . 14 7 Hits 67 | . 39 28 Projectile 67 | . 39 28 AOE 10 | . . 10 Critical Strikes 3 | . 1 2 Damage Taken 1320 | . 563 757 Core 267 | . 27 240 Absorbed by Shields . | . . . Core Remaining (%) 100 | 100 . . Volleys Fired 74 | 9 56 9 Largest 2 | 2 2 2 Hottest 60 | 40 60 40 Shots Fired 147 | 18 112 17 Gun 144 | 18 112 14 Cannon . | . . . Launcher 3 | . . 3 Special . | . . . Kinetic 142 | 18 110 14 Thermal . | . . . Explosive 3 | . . 3 Electromagnetic 2 | . 2 . Robot Hit Streak 6 | 2 6 4 Robot Miss Streak 4 | 3 4 2 Penetration Max . | . . . Secondary Targets 2 | . 2 . Max Gunslinging Chain 1 | . 1 . Shots Hit Robots 74 | 9 56 9 Core Hits 58 | 6 32 20 Critical Kills . | . . . Critical Parts Destroyed . | . . . Critical Strikes . | . . . Melee Attacks . | . . . Impact . | . . . Slashing . | . . . Piercing . | . . . Sneak Attacks . | . . . Combat Hostiles . | . . . Follow-up Attacks . | . . . Damage Inflicted 1208 | 111 824 273 Guns 897 | 111 702 84 Cannons . | . . . Explosions 301 | . 112 189 Melee . | . . . Ramming 10 | . 10 . Kinetic 876 | 111 681 84 Thermal 112 | . 112 . Explosive 189 | . . 189 Electromagnetic 21 | . 21 . Impact . | . . . Slashing . | . . . Piercing . | . . . Highest Corruption 1 | . . 1 Average Corruption 1 | . . 1 Corruption Purged . | . . . Corruption Blocked . | . . . Effects 1 | . . 1 Misfires 1 | . . 1 Overload Shots . | . . . Overflow Damage . | . . . Projectiles . | . . . Explosions . | . . . Melee . | . . . Knockbacks . | . . . Impact . | . . . Kinetic . | . . . Secondary . | . . . Self-Inflicted Damage 76 | . 36 40 Shots 2 | . 1 1 Rammed 1 | . 1 . Targets Rammed 2 | . 2 . Kicked . | . . . Crushed 1 | . 1 . Highest Temperature 27 | . 20 27 Average Temperature 8 | . 6 12 Received Heat Transfer 318 | . 240 78 Siege Activations . | . . . Martial Activations . | . . . Shielding Activations . | . . . Robots Disrupted . | . . . Combat Hostiles . | . . . Robots Corrupted . | . . . Combat Hostiles . | . . . Parts Fried . | . . . Impact Corruptions . | . . . Robots Melted . | . . . Combat Hostiles . | . . . Parts Melted 1 | . 1 . Heat Transferred 100 | . 100 . Parts Sabotaged . | . . . Parts Stolen . | . . . Parts Stripped . | . . . Power Chain Reactions 1 | . 1 . Alert | -11 -10 -10 ------- Run | Yrd Mat Min Maximum Alert Level . | . . . Low Security (%) 100 | 100 100 100 Level 1 . | . . . Level 2 . | . . . Level 3 . | . . . Level 4 . | . . . Level 5 . | . . . High Security . | . . . Max Security . | . . . Peak Influence 137 | 10 137 45 Initial . | . . . Average 49 | 1 60 14 Influence Increases 500 | 25 425 50 Destroy 0b10 Robot/C 280 | . 260 20 Destroy 0b10 Robot/NC 60 | 25 35 . Destroy Leader 76 | . 66 10 Trap Triggered on 0b10 10 | . 10 . Successful Hack 4 | . 4 . Disable Machine 15 | . 15 . Destroy Structure 10 | . 5 5 Lose Combat Pursuer 45 | . 30 15 Influence Decreases 498 | 25 425 48 Time Decay 463 | 25 395 43 Lost Part 35 | . 30 5 Squads Dispatched 2 | . 2 . Investigation 1 | . 1 . Extermination . | . . . Reinforcement 1 | . 1 . Assault . | . . . Garrison . | . . . Intercept . | . . . Searches Triggered . | . . . Construction Impeded . | . . . Haulers Reinforced . | . . . Active Scanning Responses . | . . . Cargo Convoy Interrupts . | . . . Stealth | -11 -10 -10 --------- Run | Yrd Mat Min Distress Signals 2 | . 2 . Communications Jammed . | . . . Distress Signals . | . . . Times Spotted 49 | . 31 18 Peak Tracking Total 16 | . 7 16 Tactical Retreats 3 | . 2 1 Traps | -11 -10 -10 ------- Run | Yrd Mat Min Traps Triggered 2 | . 2 . Indirectly . | . . . Trap Hack Attempts . | . . . Triggered . | . . . Disarmed . | . . . Reprogrammed 3 | . 3 . Reused 1 | . 1 . Traps Extracted . | . . . Installed . | . . . Triggered 1 | . 1 . Machines | -11 -10 -10 ---------- Run | Yrd Mat Min Machines Disabled 1 | . 1 . Max in Single Turn 1 | . 1 . Machines Repaired . | . . . Machines Dismantled . | . . . Machines Sabotaged . | . . . Overloaded Fab Kills . | . . . Hacking | -11 -10 -10 --------- Run | Yrd Mat Min Machines Accessed 5 | . 5 . Terminals 3 | . 3 . Fabricators . | . . . Repair Stations . | . . . Recycling Units 2 | . 2 . Scanalyzers . | . . . Garrison Access . | . . . Total Hacks 10 | . 10 . Successful 4 | . 4 . Failed 6 | . 6 . Catastrophic . | . . . Database Lockouts . | . . . Manual . | . . . Terminals 6 | . 6 . Fabricators . | . . . Repair Stations . | . . . Recycling Units 4 | . 4 . Scanalyzers . | . . . Garrison Access . | . . . Terminal Hacks 2 | . 2 . Locate Traps 1 | . 1 . Reprogram Traps 1 | . 1 . Fabricator Hacks . | . . . Repair Station Hacks . | . . . Recycling Unit Hacks 2 | . 2 . Retrieve Components 2 | . 2 . Scanalyzer . | . . . Garrison Access Hacks . | . . . Unauthorized Hacks . | . . . Terminals . | . . . Fabricators . | . . . Repair Stations . | . . . Recycling Units . | . . . Scanalyzers . | . . . Garrison Access . | . . . Data Cores Recovered . | . . . Used . | . . . Hacking Detections 2 | . 2 . Full Trace Events . | . . . Feedback Events . | . . . Feedback Blocked . | . . . Robot Schematics Acquired . | . . . Robots Built . | . . . Authchips . | . . . Time . | . . . Total Robot Build Rating . | . . . Part Schematics Acquired . | . . . Parts Built . | . . . Authchips . | . . . Time . | . . . Total Part Build Rating . | . . . Part Studies Acquired . | . . . Parts Repaired . | . . . Time . | . . . Parts Recycled . | . . . Recycled Matter . | . . . Retrieved Matter . | . . . Retrieved Components 10 | . 10 . Parts Scanalyzed . | . . . Part Schematics Acquired . | . . . Parts Damaged . | . . . Bothacking | -11 -10 -10 ------------ Run | Yrd Mat Min Used RIF Installer . | . . . Robots Hacked . | . . . Non-combat . | . . . Combat . | . . . Robot Hacks Applied . | . . . Relay Couplers Released . | . . . Fabnet Peak Effective % . | . . . Robots Rewired . | . . . Allies Hacked . | . . . Hacks Repelled . | . . . Allies | -11 -10 -10 -------- Run | Yrd Mat Min Total Allies . | . . . Largest Group . | . . . Highest-Rated Group . | . . . Highest-Rated Ally . | . . . Total Orders . | . . . Ally Attacks . | . . . Total Damage . | . . . Kills . | . . . Allies Corrupted . | . . . Allies Melted . | . . . Intel | -11 -10 -10 ------- Run | Yrd Mat Min Active Infowar (turns) 1160 | 11 1108 41 Seismic 1160 | 11 1108 41 Robot Analysis Total . | . . . Derelict Logs Recovered . | . . . Drone Launches . | . . . Drone Recoveries . | . . . Exploration | -11 -10 -10 ------------- Run | Yrd Mat Min Turns Passed 1404 | 173 1108 123 Spaces Moved 703 | 96 562 45 Core 32 | 32 . . Treads 664 | 64 562 38 Legs . | . . . Wheels . | . . . Hover 7 | . . 7 Flight . | . . . Fastest Speed 50 | 50 160 116 Average Speed 160 | 138 160 207 Slowest Speed 240 | 200 160 240 Overloaded Moves . | . . . Propulsion Burnouts . | . . . Robots Hopped . | . . . Potential Cave-ins . | . . . Cave-ins Triggered 1 | . . 1 Exploration Rate (%) 32 | 4 83 11 Regions Visited 2 Branch Regions 1 Pre-discovered Areas . | . . . Known Exits Taken . | . . . Unknown Exits Taken 2 | 1 1 . Scrap Searched 1 | . . 1 Spaces Dug . | . . . Terrain Destroyed 9 | . 2 7 Melee . | . . . Projectile . | . . . AOE 9 | . 2 7 Terrain Rammed . | . . . Walls Destroyed . | . . . Machines Disabled . | . . . Actions | -11 -10 -10 --------- Run | Yrd Mat Min Total 836 | 115 660 61 Wait 22 | . 19 3 Move 701 | 95 561 45 Hop . | . . . Pick Up 18 | 4 14 . Fast Attach 7 | 7 . . Attach 6 | . 3 3 Detach . | . . . Swap 4 | . 3 1 Drop 2 | . 2 . Fire 74 | 9 56 9 Melee . | . . . Ram . | . . . Kick . | . . . Crush 2 | . 2 . Escape Stasis . | . . . Rewire . | . . . Trap . | . . . Miscellaneous . | . . . Route ------- -11/Scrapyard -10/Materials (discovered 4 exits: *Mat x3 / [*Min]) -10/Mines (discovered 1 exit: *Mat) History --------- Turn | Location | Event 5 | -11/Scrapyard | Discovered new exit (range 15) 174 | -11/Scrapyard | Entered Materials 313 | -10/Materials | Build established: Mutant 471 | -10/Materials | Discovered new exit (range 8) 767 | -10/Materials | Discovered new exit (range 12) 987 | -10/Materials | Discovered new exit (range 7) 1101 | -10/Materials | Discovered new exit (range 15) 1174 | -10/Materials | Derelicts attacked the area 1282 | -10/Materials | Entered Mines 1295 | -10/Mines | Discovered new exit (range 4) 1324 | -10/Mines | Identified exit to Materials 1364 | -10/Mines | Assembled infested the area 1389 | -10/Mines | Crushed by falling debris 1389 | -10/Mines | Core integrity fell below 50% 1391 | -10/Mines | Core integrity fell below 20% 1405 | -10/Mines | Destroyed self with Grenade Launcher Last Messages --------------- 01386_ The unstable cave ceiling collapses. 01388_ Lgt. Treads destroyed. 01388_ Lgt. Assault Rifle destroyed. 01389_ The unstable cave ceiling collapses. 01389_ Crushed by falling debris. 01389_ Signal Interpreter destroyed. 01389_ System corrupted by crushing effect (+1). 01390_ D-53 Grenadier destroyed. 01391_ The unstable cave ceiling collapses. 01394_ as-23109 destroyed. 01394_ as-74246 destroyed. 01395_ D-53 Grenadier destroyed. 01397_ Assault Rifle destroyed. 01398_ The unstable cave ceiling collapses. 01402_ as-05290 destroyed. 01402_ as-53325 destroyed. 01403_ The unstable cave ceiling collapses. 01404_ Hover Unit destroyed. 01405_ System corrupted: FCS attempts to trigger Grenade Launcher. 01405_ System corrupted: Grenade Launcher misfires. Map ----- +----------------------------------------------------+ | ?????????????????????????????????????????????????? | | ?????????????????????????????????????????????????? | | ?????????????????????????????????????????????????? | | ?????????????????????????????????????????????????? | | ?????????????????????????????????????????????????? | | ?????????????????????????????????????????????????? | | ?????????????????????????????????????????????????? | | ?????????????????????????????????????????????????? | | ?????????????????????????????????????????????????? | | ?????????????????????????????????#???????????????? | | ???????????????????????????????? #???????????????? | | ???????????????????????????????? #???????????????? | | ???????????????????????????????? #???????????????? | | ??????????????????????????????? #???????????????? | | ??????????????????????????????? #???????????????? | | ????????????????????????????### ##??????????????? | | ????????????????????????????# #??????????????? | | ????????????????????????????# #??????????????? | | ????????????????????????##### #??????????????? | | ????????????????????????#[%[==< #??????????????? | | ????????????????????????#!### #??????????????? | | ?????????????????????####!#?# #??????????????? | | ????????????????????## #?#######??????????????? | | ???????????????????## #??????????????????????? | | ??????????????????## #??????????????????????? | | ??????????????????# @ ??????????????????????? | | ??????????????????# #?????????????????????? | | ??????????????????## ####??????????????????? | | ???????????????????# ##?????????????????? | | ???????????????????## #####????????????????? | | ????????????????????### # ##???????????????? | | ??????????????????????# # #?? # ##???????? | | ??????????????????????# ##??????? | | ??????????????????????" % #??????? | | ??????????????????????" a a #???? | | ??????????????????????#X ### ???? | | ??????????????????????# a a #???? ? ?????? | | ??????????????????????# ##??????????????? | | ?????????????????????# ## ##???????????????? | | ????????????????????# ?# ### #????????????????? | | ????????????????????# ? #?? ????????????????? | | ????????????????????## #?###?? ???????????????? | | ?????????????????????###???????? ??????????????? | | ???????????????????????????????? ??????????????? | | ????????????????????????????????? ?????????????? | | ????????????????????????????????? ?????????????? | | ?????????????????????????????????? ?????????????? | | ?????????????????????????????????????????????????? | | ?????????????????????????????????????????????????? | | ?????????????????????????????????????????????????? | +----------------------------------------------------+ Best States ------------- Heat Dissipation 25 Energy Generation 10 Energy Capacity 250 Matter Stores 300 Matter Capacity 300 Sight Range 16 Terrain Scan Density 10 Evasion (%) 50 Recoil Reduction 2 Item Schematics ----------------- None Robot Schematics ------------------ None Fabricated ------------ Nothing Repaired ---------- Nothing Studied --------- None Alien Tech Used ----------------- None Achievements -------------- None Challenges ------------ None Game ------ Seed DataTrackerCyclogen Manual? 0 Play Time 00:08:10 Cumulative 38.4 hours Start 2026.06.18 @ 14:55:50 End 2026.06.18 @ 15:02:45 Sessions 1 Manual Loads 0 Difficulty Rogue Special Mode None Game No. 70 Rogue 70 Adventurer 0 Explorer 0 Win Type - Total 0 Types 0/0/0/0/0/0/0/0/0/0 Lore% 22 Gallery% 20 Achievement% 19 Wizard Run 0 Options --------- Layout 0 ASCII 0 Keyboard 0 Movement Mouse Keybinds 0 Fullscreen 2 Font 24/Smallcaps Map View 76x50 Zoom Use 0% Tactical HUD 1 Map Filters NONE Filters NONE Steam 1 RUN: ff306232-40aa-4970-a873-8a7fade04022